bitfinex-derivatives/quotes_SOLF0:USTF0_20251018
["timestamp","ask_amount","ask_price","bid_price","bid_amount"]
[1760814685201,4.8323,186.19,186.18,4.97483444]
[1760814685499,52.1823,186.19,186.18,4.97483444]
[1760814686302,7.6423,186.19,186.18,4.97483444]
[1760814686806,52.1823,186.19,186.18,4.97483444]
[1760814687502,7.6423,186.19,186.18,4.97483444]
[1760814687897,52.1823,186.19,186.18,4.97483444]
[1760814688605,7.6423,186.19,186.18,4.97483444]
[1760814688905,52.1823,186.19,186.18,4.98003664]
[1760814689304,7.6423,186.19,186.18,4.98023984]
[1760814690301,7.6423,186.19,186.18,4.98062899]
[1760814690503,52.1823,186.19,186.18,4.98062899]
[1760814691301,7.6423,186.19,186.18,4.98062899]
[1760814691799,52.1823,186.19,186.18,4.98062899]
[1760814692104,7.6423,186.19,186.18,4.98062899]
[1760814692406,52.1823,186.19,186.18,4.98104223]
[1760814692604,7.6423,186.19,186.18,4.98104223]
[1760814692803,52.1823,186.19,186.18,4.98104223]
[1760814693206,52.1823,186.19,186.16,9.44492779]
[1760814693404,7.6423,186.19,186.17,6.67492779]
[1760814693601,52.1823,186.19,186.17,6.67492779]
[1760814694906,7.6423,186.19,186.17,6.67492779]
[1760814695100,44.54,186.18,186.17,6.67492779]
[1760814695598,4.8328,186.17,186.16,6.67492779]
[1760814695802,4.8328,186.17,186.14,6.67492779]
[1760814696005,2.81,186.16,186.14,6.67492779]
[1760814696606,2.81,186.16,186.14,9.44492779]
[1760814697204,4.8333,186.15,186.14,9.44492779]
[1760814697412,4.8333,186.15,186.14,6.67492779]
[1760814700210,7.6433,186.15,186.14,6.67492779]
[1760814700911,7.6433,186.15,186.13,6.67492779]
[1760814701111,7.6433,186.15,186.12,9.44492779]
[1760814701510,52.1833,186.15,186.12,9.44492779]
[1760814702213,7.6433,186.15,186.12,9.44492779]
[1760814702413,52.1833,186.15,186.12,9.44492779]
[1760814702614,7.6433,186.15,186.12,9.44492779]
[1760814702809,49.3733,186.15,186.12,9.44492779]
[1760814703115,2.81,186.14,186.12,9.44492779]
[1760814704309,2.81,186.13,186.12,6.67492779]
[1760814704512,29.64,186.15,186.1,6.67492779]
[1760814704713,2.81,186.14,186.13,4.98381624]
[1760814705319,2.81,186.13,186.12,4.98381624]
[1760814706019,47.35,186.13,186.12,4.98381624]
[1760814706220,47.35,186.13,186.12,4.98390003]
[1760814706419,2.81,186.13,186.12,4.98390003]
[1760814706614,47.35,186.13,186.12,4.98390003]
[1760814707016,2.81,186.13,186.12,4.98390003]
[1760814707217,47.35,186.13,186.12,4.98390003]
[1760814707418,47.35,186.13,186.1,4.98390003]
[1760814707620,2.71,186.13,186.11,4.98390003]
[1760814708920,47.25,186.13,186.11,4.98390003]
[1760814709125,3.3377843,186.12,186.08,4.98342285]
[1760814709419,2.71,186.08,186.04,2.86]
[1760814709621,2.71,186.07,186.04,2.86]
[1760814710715,25.2152,186.08,186.01,9.99653646]
[1760814711024,4.8352,186.08,186.03,2.86]
[1760814712922,4.8352,186.08,186.02,2.86]
[1760814715430,4.8355,186.07,186.02,2.86]
[1760814715729,4.8355,186.07,186.01,2.86]
[1760814716123,31.96,186.11,186.01,2.86]
[1760814716124,4.8358,186.06,186.01,2.86]
[1760814716323,2.71,186.08,186.01,2.86]
[1760814716720,4.836,186.05,186.01,2.86]
[1760814716924,4.836,186.05,185.99,2.86]
[1760814717933,2.71,186.06,185.99,2.86]
[1760814718129,2.71,186.06,186.0,2.86]
[1760814719137,2.71,186.06,186.0,7.6971]
[1760814719333,7.545,186.09,186.01,2.86]
[1760814720936,7.545,186.09,186.01,7.6968]
[1760814721128,7.545,186.09,186.02,2.86]
[1760814723330,44.56,186.13,186.01,4.8368]
[1760814723331,3.3377843,186.15,186.01,2.86]
[1760814723530,3.3377843,186.12,186.01,2.86]
[1760814723731,2.71,186.11,186.01,2.86]
[1760814724229,7.5445,186.11,186.04,7.6959]
[1760814725228,2.71,186.1,186.04,7.6959]
[1760814725428,2.71,186.1,186.01,7.6967]
[1760814725629,2.71,186.09,186.01,2.86]
[1760814726234,2.71,186.08,186.02,4.8365]
[1760814727633,2.71,186.08,186.03,2.76]
[1760814727830,8.1727843,186.09,186.02,7.5965]
[1760814727831,10.9227843,186.09,186.02,7.5965]
[1760814731140,8.1727843,186.09,186.02,7.5965]
[1760814731341,2.75,186.08,186.02,7.5965]
[1760814738137,3.3377843,186.09,185.99,2.59]
[1760814738448,2.59,186.08,185.99,2.59]
[1760814738639,2.59,186.08,186.0,2.59]
[1760814738640,4.8358,186.06,186.0,2.59]
[1760814739340,2.59,186.12,186.01,2.59]
[1760814739541,5.9277843,186.08,186.01,2.59]
[1760814740434,10.7630843,186.08,186.01,7.4267]
[1760814740639,7.4253,186.08,186.03,2.59]
[1760814740847,4.8353,186.08,186.02,6.63515913]
[1760814741049,7.4253,186.08,186.02,9.22515913]
[1760814741849,2.59,186.08,186.02,14.06165913]
[1760814742443,2.59,186.08,186.02,11.47165913]
[1760814743650,2.59,186.08,186.03,2.59]
[1760814744443,2.59,186.08,186.02,11.47165913]
[1760814744444,2.59,186.08,186.02,14.06165913]
[1760814745354,2.59,186.07,186.03,6.63515913]
[1760814745555,2.59,186.07,186.04,2.59]
[1760814749256,2.59,186.07,186.04,9.22515913]
[1760814749456,2.59,186.07,186.04,6.63515913]
[1760814749654,2.59,186.06,186.03,6.63515913]
[1760814749851,2.59,186.06,186.03,9.22515913]
[1760814750256,2.59,186.06,186.04,6.63515913]
[1760814750659,2.59,186.06,186.04,9.22515913]
[1760814751257,4.8353,186.08,186.04,6.63515913]
[1760814751457,2.59,186.07,186.04,9.22515913]
[1760814752052,2.59,186.04,185.96,1.69733646]
[1760814752359,2.59,185.97,185.88,2.59]
[1760814752859,5.9277843,185.97,185.88,2.59]
[1760814753254,5.9277843,185.97,185.89,2.59]
[1760814753954,14.80835926,185.97,185.89,2.59]
[1760814754158,10.7660843,185.97,185.89,2.59]
[1760814754860,2.59,185.95,185.89,2.59]
[1760814756057,7.4287,185.95,185.89,2.59]
[1760814756564,2.59,185.93,185.85,2.59]
[1760814759861,16.13820274,185.95,185.84,2.59]
[1760814760062,2.59,185.97,185.87,2.59]
[1760814760958,2.59,185.97,185.9,4.8396]
[1760814761163,2.59,185.97,185.91,2.59]
[1760814765772,2.59,185.97,185.91,7.4293]
[1760814766873,16.16462038,185.98,185.92,4.8391]
[1760814766874,18.84462038,185.98,185.92,4.8391]
[1760814767072,2.68,185.98,185.92,4.8391]
[1760814768175,2.68,185.98,185.93,4.8389]
[1760814768377,3.3377843,185.99,185.94,2.8]
[1760814768572,2.68,185.98,185.94,2.8]
[1760814768968,3.3377843,185.99,185.94,2.8]
[1760814769276,19.59666874,185.99,185.94,2.8]
[1760814769477,2.68,185.99,185.95,2.8]
[1760814769674,2.68,186.01,185.95,2.8]
[1760814770477,47.32,186.01,185.95,2.8]
[1760814770677,3.3377843,186.02,185.94,4.8386]
[1760814770866,47.3,186.01,185.94,4.8386]
[1760814771071,2.68,186.0,185.94,4.8386]
[1760814771577,3.3377843,186.02,185.96,2.8]
[1760814771782,2.68,186.01,185.96,2.8]
[1760814771976,44.62,186.01,185.96,2.8]
[1760814772180,2.68,186.0,185.94,4.8386]
[1760814773682,2.68,186.0,185.93,2.8]
[1760814774183,47.3,186.0,185.93,2.8]
[1760814776376,47.28,186.0,185.93,2.8]
[1760814776580,2.68,186.0,185.93,2.8]
[1760814776976,47.28,186.0,185.93,2.8]
[1760814778079,47.28,186.0,185.93,7.6389]
[1760814778276,2.68,186.0,185.93,7.6389]
[1760814778482,47.28,186.0,185.93,7.6389]
[1760814780185,2.68,186.0,185.93,7.6389]
[1760814780380,44.58,185.99,185.93,7.6389]
[1760814780582,2.68,186.0,185.94,2.8]
[1760814780783,2.68,186.0,185.93,4.8389]
[1760814780784,44.58,185.99,185.93,4.8389]
[1760814781081,2.68,186.0,185.94,7.6386]
[1760814781281,2.68,186.0,185.95,2.8]
[1760814781482,2.68,186.0,185.89,3.3377843]
[1760814781673,2.68,186.0,185.9,2.8]
[1760814782280,19.77636752,186.02,185.9,2.8]
[1760814782475,2.68,186.03,185.9,2.8]
[1760814783281,2.68,186.03,185.93,2.8]
[1760814783982,2.68,186.03,185.97,7.6378]
[1760814784290,3.3377843,186.02,185.97,4.8378]
[1760814784480,2.68,186.01,185.97,4.8378]
[1760814784677,2.68,186.01,185.94,7.6385]
[1760814786585,2.78,186.01,185.94,7.6385]
[1760814786781,55.07699136,186.02,185.94,7.6385]
[1760814786982,2.78,186.01,185.94,7.6385]
[1760814787187,2.78,186.01,185.95,4.8384]
[1760814787983,19.76009136,186.02,185.96,4.8381]
[1760814788189,22.54009136,186.02,185.96,4.8381]
[1760814792385,19.76009136,186.02,185.96,4.8381]
[1760814793086,2.78,186.01,185.96,4.8381]
[1760814793387,2.78,186.01,185.96,7.6181]
[1760814793886,19.76009136,186.02,185.96,7.6181]
[1760814794392,2.78,186.01,185.96,7.6181]
[1760814794686,19.76009136,186.02,185.96,7.6181]
[1760814794886,2.78,186.01,185.96,7.6181]
[1760814795089,16.42230706,186.02,185.96,4.8381]
[1760814795283,3.3377843,186.03,185.96,4.8381]
[1760814795484,2.78,186.02,185.96,4.8381]
[1760814798296,18.76059584,186.02,185.96,4.8381]
[1760814799494,18.76059584,186.02,185.97,2.83]
[1760814799795,15.98059584,186.02,185.98,2.83]
[1760814799997,3.3377843,186.03,185.98,2.83]
[1760814800296,2.66,186.02,185.96,4.8381]
[1760814802391,16.27238318,186.02,185.98,2.83]
[1760814802592,47.9177843,186.03,185.98,2.83]
[1760814802796,3.3377843,186.03,185.98,2.83]
[1760814803096,7.34777823,186.03,185.98,2.83]
[1760814803293,2.66,186.02,185.98,2.83]
[1760814803497,7.34777823,186.03,185.98,2.83]
[1760814803699,2.66,186.02,185.98,2.83]
[1760814803998,52.7543843,186.03,185.98,2.83]
[1760814804392,2.66,186.02,185.98,2.83]
[1760814804798,52.7543843,186.03,185.98,2.83]
[1760814804999,2.66,186.02,185.98,2.83]
[1760814805388,2.66,186.02,185.96,4.8381]
[1760814805594,2.66,186.02,185.97,2.83]
[1760814805795,2.66,186.01,185.98,2.83]
[1760814810502,63.91773645,186.02,185.98,2.83]
[1760814810702,19.33773645,186.02,185.98,2.83]
[1760814810903,63.91773645,186.02,185.98,2.83]
[1760814811605,2.66,186.01,185.98,2.83]
[1760814811804,63.91773645,186.02,185.98,2.83]
[1760814812407,2.66,186.01,185.98,2.83]
[1760814812707,2.66,186.0,185.98,2.83]
[1760814818304,2.66,186.01,185.95,4.8384]
[1760814818509,3.3377843,186.04,185.95,4.8384]
[1760814818510,2.66,185.99,185.95,4.8384]
[1760814818704,2.66,185.99,185.95,2.83]
[1760814819008,4.8374,186.0,185.95,2.83]
[1760814819407,2.66,185.99,185.94,2.83]
[1760814819605,49.4174,186.0,185.93,6.66618093]
[1760814819802,2.66,185.99,185.94,2.83]
[1760814819997,2.66,185.99,185.94,4.8387]
[1760814820202,4.8374,186.0,185.95,2.83]
[1760814820203,35.8774,186.0,185.95,2.83]
[1760814820499,4.8374,186.0,185.95,2.83]
[1760814820699,2.66,185.99,185.95,2.83]
[1760814821409,49.4174,186.0,185.95,2.83]
[1760814821609,2.66,185.99,185.95,2.83]
[1760814822007,7.4974,186.0,185.95,2.83]
[1760814822207,49.4174,186.0,185.94,11.50488093]
[1760814822407,4.8374,186.0,185.94,11.50488093]
[1760814822608,52.0774,186.0,185.94,14.33488093]
[1760814823009,7.4974,186.0,185.94,14.33488093]
[1760814825602,7.4974,186.0,185.95,4.8384]
[1760814825807,2.66,185.99,185.96,2.83]
[1760814826009,2.66,185.99,185.97,2.83]
[1760814828109,2.75,186.01,185.95,6.66618093]
[1760814828310,2.75,186.04,185.99,6.66618093]
[1760814828510,3.3377843,186.09,185.99,9.51618093]
[1760814828717,3.3377843,186.09,185.99,6.66618093]
[1760814828916,3.3377843,186.09,186.0,6.66618093]
[1760814829116,2.75,186.08,185.99,9.51618093]
[1760814829318,44.58,186.08,185.99,9.51618093]
[1760814829518,2.75,186.08,185.99,9.51618093]
[1760814829706,3.3377843,186.06,185.99,9.51618093]
[1760814829912,2.75,186.05,185.99,9.51618093]
[1760814830218,47.33,186.05,185.99,14.35358093]
[1760814830720,2.75,186.05,185.99,14.35358093]
[1760814830918,47.31,186.05,185.99,14.35358093]
[1760814831117,2.75,186.05,185.99,14.35358093]
[1760814831616,3.3377843,186.03,185.99,6.66618093]
[1760814831819,2.75,185.99,185.93,9.51618093]
[1760814833219,2.75,185.99,185.93,2.85]
[1760814833407,3.3377843,186.03,185.92,6.66618093]
[1760814833408,3.3377843,185.97,185.92,6.66618093]
[1760814833608,3.3377843,185.97,185.92,9.51618093]
[1760814833814,2.75,185.96,185.92,9.51618093]
[1760814834018,3.3377843,185.97,185.92,9.51618093]
[1760814834221,2.75,185.96,185.92,2.85]
[1760814834719,2.75,185.96,185.91,6.66618093]
[1760814834920,2.75,185.96,185.93,2.85]
[1760814835121,3.3377843,185.97,185.94,2.85]
[1760814835320,3.3377843,185.97,185.93,2.85]
[1760814835714,6.0877843,185.97,185.93,2.85]
[1760814836015,6.0877843,185.97,185.92,6.66618093]
[1760814836415,6.0877843,185.97,185.93,2.85]
[1760814836615,6.0877843,185.97,185.92,6.66618093]
[1760814836814,6.0877843,185.97,185.93,2.85]
[1760814837119,6.0877843,185.97,185.92,6.66618093]
[1760814837321,6.0877843,185.97,185.93,2.85]
[1760814838116,6.0877843,185.97,185.92,6.66618093]
[1760814838711,6.0877843,185.97,185.93,2.85]
[1760814838915,6.0877843,185.97,185.92,6.66618093]
[1760814839411,3.3377843,185.97,185.93,2.85]
[1760814839619,2.75,185.96,185.93,2.85]
[1760814841318,3.3377843,185.97,185.92,9.51618093]
[1760814841625,2.75,185.96,185.93,2.85]
[1760814842218,3.3377843,185.97,185.91,11.50558093]
[1760814842423,3.3377843,185.97,185.92,6.66618093]
[1760814842624,6.0877843,185.97,185.92,6.66618093]
[1760814843023,6.0877843,185.97,185.93,2.85]
[1760814843516,6.0877843,185.97,185.92,6.66618093]
[1760814843722,2.75,185.96,185.93,2.85]
[1760814844317,2.75,185.96,185.92,6.66618093]
[1760814844522,3.3377843,185.97,185.91,11.50558093]
[1760814844717,2.75,185.96,185.91,11.50558093]
[1760814845121,2.75,186.01,185.93,4.8388]
[1760814845325,6.0877843,186.01,185.94,2.85]
[1760814846927,6.0877843,186.01,185.94,7.6886]
[1760814848124,7.4373,186.0,185.94,2.85]
[1760814848329,2.6,185.99,185.93,6.66618093]
[1760814848533,2.6,185.99,185.92,6.66618093]
[1760814848826,2.6,185.99,185.93,6.66618093]
[1760814849027,2.6,185.99,185.92,6.66618093]
[1760814849222,2.6,185.98,185.92,6.66618093]
[1760814850130,4.8373,186.0,185.92,6.66618093]
[1760814850434,2.6,185.98,185.92,9.53618093]
[1760814850625,2.6,185.98,185.92,2.87]
[1760814852020,2.6,185.98,185.92,7.7092]
[1760814861648,2.6,185.98,185.93,2.72]
[1760814861949,2.6,185.98,185.94,2.72]
[1760814862340,2.6,185.98,185.93,7.5589]
[1760814862547,10.8847843,186.01,185.94,2.72]
[1760814863948,10.8847843,186.01,185.94,7.5586]
[1760814864147,10.8847843,186.01,185.95,2.72]
[1760814872350,7.547,186.01,185.95,2.72]
[1760814874854,7.547,186.01,185.95,9.38618093]
[1760814875056,4.837,186.01,185.95,6.66618093]
[1760814875257,7.547,186.01,185.96,2.72]
[1760814875456,2.71,186.0,185.96,2.72]
[1760814875753,2.71,186.0,185.95,9.38618093]
[1760814875953,2.71,185.99,185.95,9.38618093]
[1760814876257,2.71,186.0,185.95,9.38618093]
[1760814876452,2.71,185.99,185.95,9.38618093]
[1760814876658,2.71,186.0,185.95,9.38618093]
[1760814876858,2.71,185.99,185.95,9.38618093]
[1760814877058,2.71,186.0,185.95,9.38618093]
[1760814877855,4.837,186.01,185.95,9.38618093]
[1760814878058,2.71,186.0,185.95,9.38618093]
[1760814878357,4.837,186.01,185.95,9.38618093]
[1760814878557,2.71,186.0,185.95,9.38618093]
[1760814878857,4.837,186.01,185.95,9.38618093]
[1760814879060,2.71,186.0,185.95,9.38618093]
[1760814879259,4.837,186.01,185.95,9.38618093]
[1760814879463,2.71,186.0,185.95,9.38618093]
[1760814879753,4.837,186.01,185.95,9.38618093]
[1760814879953,2.71,186.0,185.95,9.38618093]
[1760814880160,4.837,186.01,185.95,9.38618093]
[1760814880358,2.71,186.0,185.95,9.38618093]
[1760814881161,2.71,186.0,185.95,6.66618093]
[1760814881861,2.71,185.99,185.96,2.72]
[1760814882062,2.71,186.0,185.96,2.72]
[1760814882861,2.71,185.99,185.96,2.72]
[1760814883158,4.837,186.01,185.96,2.72]
[1760814883661,2.71,185.99,185.96,2.72]
[1760814883860,4.837,186.01,185.96,2.72]
[1760814883861,2.71,186.0,185.96,2.72]
[1760814884158,4.837,186.01,185.96,2.72]
[1760814884359,2.71,186.0,185.96,2.72]
[1760814884954,49.397,186.01,185.96,2.72]
[1760814885156,2.71,186.0,185.96,2.72]
[1760814885557,49.397,186.01,185.96,2.72]
[1760814885758,2.71,186.0,185.96,2.72]
[1760814886264,2.61,186.0,185.96,2.72]
[1760814886454,49.397,186.01,185.96,2.72]
[1760814886658,2.61,186.0,185.96,2.72]
[1760814886858,49.397,186.01,185.96,2.72]
[1760814887153,4.8374,186.0,185.96,2.72]
[1760814887359,2.61,185.99,185.96,2.72]
[1760814887556,49.3774,186.0,185.96,2.72]
[1760814888160,2.61,185.99,185.96,2.72]
[1760814888364,49.3774,186.0,185.96,2.72]
[1760814888565,2.61,185.99,185.96,2.72]
[1760814889266,49.3774,186.0,185.96,2.72]
[1760814889567,44.54,185.99,185.96,2.72]
[1760814889766,2.61,185.98,185.96,2.72]
[1760814904181,2.61,185.98,185.94,6.66618093]
[1760814904380,2.61,185.98,185.95,2.66]
[1760814905070,2.61,185.98,185.94,6.66618093]
[1760814905270,2.61,185.98,185.95,2.66]
[1760814905575,2.61,185.98,185.94,6.66618093]
[1760814905874,2.61,186.0,185.96,6.66618093]
[1760814906072,5.02503049,186.06,185.97,2.66]
[1760814906073,2.61,186.05,185.97,2.66]
[1760814906271,2.61,186.02,185.96,6.66618093]
[1760814906479,2.65,186.02,185.95,6.66618093]
[1760814906782,44.54,186.01,185.95,6.66618093]
[1760814907077,3.3377843,186.03,185.95,9.26618093]
[1760814907279,2.65,186.01,185.95,9.26618093]
[1760814907480,52.0271,186.01,185.95,9.26618093]
[1760814908885,7.4871,186.01,185.95,2.6]
[1760814909179,49.3771,186.01,185.94,6.66618093]
[1760814909682,2.65,185.99,185.96,2.6]
[1760814910384,2.65,186.02,185.96,2.6]
[1760814910573,2.65,186.05,185.97,2.6]
[1760814910976,2.65,186.05,185.98,2.6]
[1760814911180,47.19,186.05,185.98,2.6]
[1760814911575,2.65,186.05,185.98,2.6]
[1760814911982,47.19,186.05,185.98,2.6]
[1760814912582,44.54,186.07,186.0,2.6]
[1760814912778,2.65,186.07,186.0,2.6]
[1760814912978,47.19,186.07,186.0,2.6]
[1760814913179,2.65,186.07,186.0,2.6]
[1760814914686,2.65,186.04,185.97,2.6]
[1760814915282,7.4864,186.04,185.97,2.6]
[1760814915988,2.65,186.01,185.94,2.6]
[1760814916384,4.8377,185.99,185.94,2.6]
[1760814916586,2.78,185.98,185.94,2.6]
[1760814916987,2.78,185.97,185.94,2.6]
[1760814917190,2.78,185.98,185.94,2.6]
[1760814917393,4.8377,185.99,185.94,2.6]
[1760814917594,29.14,186.0,185.92,2.72]
[1760814917893,2.78,186.0,185.92,2.72]
[1760814918689,7.6174,186.0,185.92,2.72]
[1760814919292,3.3377843,185.99,185.92,2.72]
[1760814922497,8.1753843,185.99,185.92,2.72]
[1760814922795,2.78,185.98,185.92,2.72]
[1760814925098,2.78,185.98,185.92,7.5591]
[1760814926799,3.3377843,185.99,185.93,7.5588]
[1760814927006,3.3377843,185.99,185.93,4.8388]
[1760814927198,6.1177843,185.99,185.94,2.72]
[1760814927500,3.3377843,185.99,185.93,4.8388]
[1760814927702,2.78,185.98,185.95,2.72]
[1760814929104,3.3377843,185.99,185.94,2.72]
[1760814929297,2.78,185.98,185.94,2.72]
[1760814929492,3.3377843,185.99,185.91,4.8395]
[1760814929697,2.78,185.98,185.91,7.5595]
[1760814931997,3.3377843,185.99,185.93,5.00828033]
[1760814932403,2.78,185.98,185.93,5.00828033]
[1760814932604,3.3377843,185.99,185.94,2.72]
[1760814933205,2.78,185.98,185.94,2.72]
[1760814933404,3.3377843,185.99,185.94,2.72]
[1760814933603,6.1177843,185.99,185.94,2.72]
[1760814934308,2.78,185.98,185.94,2.72]
[1760814934507,2.78,185.98,185.93,5.00828033]
[1760814934809,3.3377843,185.99,185.93,5.00828033]
[1760814935005,2.78,185.98,185.93,5.00828033]
[1760814935208,2.78,185.98,185.94,2.72]
[1760814935504,3.3377843,185.99,185.94,2.72]
[1760814936398,2.78,185.98,185.93,5.00828033]
[1760814936603,2.78,185.98,185.94,2.72]
[1760814936804,2.78,185.98,185.93,5.00828033]
[1760814936805,6.1177843,185.99,185.93,5.00828033]
[1760814937209,6.1177843,185.99,185.94,2.72]
[1760814937409,2.78,185.98,185.93,5.00828033]
[1760814937603,2.78,185.98,185.94,2.72]
[1760814937812,2.78,185.98,185.93,5.00828033]
[1760814938009,2.78,185.98,185.95,2.72]
[1760814939604,2.78,185.99,185.96,2.72]
[1760814940707,10.9545843,186.02,185.96,2.72]
[1760814940903,15.50291467,186.02,185.96,2.72]
[1760814941102,10.9545843,186.02,185.96,2.72]
[1760814941703,15.50273894,186.02,185.96,2.72]
[1760814941913,10.9545843,186.02,185.96,2.72]
[1760814942414,6.1177843,186.02,185.96,2.72]
[1760814944115,6.1177843,186.02,185.96,7.5581]
[1760814945315,2.78,186.01,185.95,5.00828033]
[1760814946207,2.78,186.01,185.95,7.72828033]
[1760814947823,2.65,186.03,185.96,2.79]
[1760814948119,2.65,186.03,185.88,9.6806]
[1760814948120,2.65,186.03,185.97,5.00828033]
[1760814948422,2.65,186.03,186.0,2.79]
[1760814948816,2.65,186.03,186.01,2.79]
[1760814950117,2.65,186.05,186.0,2.79]
[1760814950418,2.65,186.06,186.0,2.79]
[1760814952414,7.19556447,186.06,186.0,2.79]
[1760814952613,7.19556447,186.06,185.97,12.63618033]
[1760814952614,4.54556447,186.06,185.97,12.63618033]
[1760814952822,2.65,186.03,185.97,7.6279]
[1760814954417,8.1739843,186.04,185.97,2.79]
[1760814954622,7.4866,186.03,185.97,2.79]
[1760814955123,52.0066,186.03,185.97,2.79]
[1760814956021,7.4866,186.03,185.97,2.79]
[1760814956224,37.3266,186.03,185.97,2.79]
[1760814956625,4.8368,186.02,185.97,2.79]
[1760814956919,5.9877843,186.01,185.95,7.79828033]
[1760814957122,5.9877843,186.01,185.95,2.79]
[1760814957923,5.9877843,186.01,185.95,7.79828033]
[1760814959725,5.9877843,186.01,185.95,2.79]
[1760814964941,2.65,186.01,185.96,2.79]
[1760814965134,2.65,186.01,185.98,2.79]
[1760814967339,2.8,186.02,185.98,2.79]
[1760814967640,3.3377843,186.03,185.98,2.79]
[1760814968142,2.8,186.02,185.98,2.79]
[1760814968635,3.3377843,186.03,185.98,2.79]
[1760814969336,2.8,186.01,185.98,2.79]
[1760814969642,2.8,186.01,185.96,2.72]
[1760814969834,2.8,186.0,185.97,2.72]
[1760814970230,2.8,186.01,185.95,5.00828033]
[1760814970633,6.1377843,186.01,185.95,5.00828033]
[1760814971042,6.1377843,186.01,185.95,9.84668033]
[1760814974434,3.3377843,186.01,185.96,2.72]
[1760814974635,6.1377843,186.01,185.96,2.72]
[1760814974833,3.3377843,186.01,185.96,2.72]
[1760814975041,2.8,186.0,185.95,9.84668033]
[1760814975239,2.8,186.0,185.96,2.72]
[1760814976338,8.1748843,186.01,185.94,9.84688033]
[1760814976640,10.9148843,186.01,185.95,2.84]
[1760814977042,10.9148843,186.01,185.95,7.84828033]
[1760814977243,10.9148843,186.01,185.96,2.84]
[1760814977541,6.0777843,186.01,185.96,2.84]
[1760814977749,3.3377843,186.01,185.98,2.84]
[1760814978041,6.0777843,186.01,185.98,2.84]
[1760814983454,10.62388155,186.04,185.98,7.84828033]
[1760814983659,6.0777843,186.04,185.98,5.00828033]
[1760814983957,6.0777843,186.04,185.99,2.84]
[1760814984156,6.0777843,186.04,186.0,2.84]
[1760814984551,6.0777843,186.04,186.01,2.84]
[1760814984750,12.71971412,186.07,186.0,5.00828033]
[1760814984951,12.71971412,186.07,186.01,7.84828033]
[1760814984952,15.45971412,186.07,186.01,7.84828033]
[1760814985146,10.9131843,186.07,186.01,7.84828033]
[1760814986465,10.9131843,186.07,186.02,2.84]
[1760814986657,2.74,186.06,186.02,2.84]
[1760814987455,6.0777843,186.07,186.04,2.84]
[1760814987758,2.74,186.06,186.03,5.00828033]
[1760814988056,3.3377843,186.03,185.99,5.00828033]
[1760814988256,2.74,186.02,185.98,5.00828033]
[1760814988456,3.3377843,186.03,185.98,5.00828033]
[1760814988656,2.74,186.02,185.98,7.84828033]
[1760814988858,2.74,186.01,185.99,2.84]
[1760814989755,2.74,186.02,185.97,7.84828033]
[1760814989960,3.3377843,186.03,185.97,2.84]
[1760814990161,3.3377843,186.0,185.96,5.00828033]
[1760814990361,2.74,185.99,185.96,5.00828033]
[1760814990555,2.74,185.99,185.96,7.84828033]
[1760814992766,2.74,185.99,185.96,2.84]